[Event "*** Titled Tuesday Blitz"]
[Site "Chess.com"]
[Date "2019.06.04"]
[Round "1"]
[White "SARGISMV"]
[Black "Korchmar_Vasiliy"]
[Result "0-1"]
[WhiteElo "2419"]
[BlackElo "2785"]
[TimeControl "180+2"]
[EndTime "13:07:57 PDT"]
[Termination "Korchmar_Vasiliy won by resignation"]

1. d4 {[%clk 0:02:57.4]} 1... d5 {[%clk 0:03:00.3]} 2. Nf3 {[%clk 0:02:58.5]}
2... Nf6 {[%clk 0:03:00.7]} 3. c4 {[%clk 0:02:59.8]} 3... e6 {[%clk 0:03:01.5]}
4. Nc3 {[%clk 0:02:59.8]} 4... dxc4 {[%clk 0:03:02.5]} 5. e4 {[%clk 0:03:00.1]}
5... b5 {[%clk 0:03:02]} 6. e5 {[%clk 0:03:00.8]} 6... Nd5 {[%clk 0:03:02.2]} 7.
Nxb5 {[%clk 0:02:43.7]} 7... Nb6 {[%clk 0:03:03.4]} 8. h4 {[%clk 0:02:37.3]}
8... Bb7 {[%clk 0:03:02.1]} 9. Rh3 {[%clk 0:02:36.9]} 9... Nc6 {[%clk
0:02:48.2]} 10. Be2 {[%clk 0:02:22.6]} 10... Nb4 {[%clk 0:02:45.7]} 11. Bg5
{[%clk 0:01:55.5]} 11... Be7 {[%clk 0:02:45.3]} 12. Rg3 {[%clk 0:01:55.1]} 12...
Be4 {[%clk 0:02:32.9]} 13. Kf1 {[%clk 0:01:52.2]} 13... O-O {[%clk 0:02:29.4]}
14. Bh6 {[%clk 0:01:46.5]} 14... Bg6 {[%clk 0:02:30.4]} 15. h5 {[%clk 0:01:47]}
15... gxh6 {[%clk 0:02:30.8]} 16. hxg6 {[%clk 0:01:47.1]} 16... hxg6 {[%clk
0:02:29.8]} 17. a3 {[%clk 0:01:45.3]} 17... N4d5 {[%clk 0:02:30.6]} 18. Qc2
{[%clk 0:01:46.1]} 18... Kg7 {[%clk 0:02:28.2]} 19. Bxc4 {[%clk 0:01:44.8]}
19... Nxc4 {[%clk 0:02:25]} 20. Qxc4 {[%clk 0:01:46.7]} 20... Rb8 {[%clk
0:02:26.8]} 21. b4 {[%clk 0:01:41.8]} 21... a5 {[%clk 0:02:23.9]} 22. bxa5
{[%clk 0:01:36.8]} 22... c6 {[%clk 0:02:25.3]} 23. Qxc6 {[%clk 0:01:26.8]} 23...
Qxa5 {[%clk 0:02:26.6]} 24. Nd6 {[%clk 0:01:27.7]} 24... Bxd6 {[%clk 0:02:23.1]}
25. Qxd6 {[%clk 0:01:22.7]} 25... Rb2 {[%clk 0:02:21.7]} 26. Kg1 {[%clk
0:01:22.1]} 26... Nc3 {[%clk 0:02:17.7]} 27. Rh3 {[%clk 0:01:07.9]} 27... Ne2+
{[%clk 0:02:08.7]} 28. Kf1 {[%clk 0:01:04.1]} 28... Nf4 {[%clk 0:02:10.6]} 29.
Rh4 {[%clk 0:01:03]} 29... Qb5+ {[%clk 0:02:09.1]} 30. Kg1 {[%clk 0:01:03.7]}
30... Qe2 {[%clk 0:02:00.1]} 31. Rf1 {[%clk 0:00:56.5]} 31... Nd3 {[%clk
0:02:01.4]} 32. Qe7 {[%clk 0:00:52.6]} 32... Nxf2 {[%clk 0:01:49.2]} 33. Qf6+
{[%clk 0:00:50.7]} 33... Kg8 {[%clk 0:01:50.5]} 34. Rh2 {[%clk 0:00:36]} 34...
Ng4 {[%clk 0:01:45.8]} 35. Qh4 {[%clk 0:00:34.7]} 35... Nxh2 {[%clk 0:01:43.3]}
36. Qxh2 {[%clk 0:00:36.6]} 36... Qe3+ {[%clk 0:01:42.1]} 37. Kh1 {[%clk
0:00:37.3]} 37... Rfb8 {[%clk 0:01:42.4]} 38. Nh4 {[%clk 0:00:27.6]} 38... Rb1
{[%clk 0:01:41.6]} 39. Qg1 {[%clk 0:00:23.4]} 39... Qxg1+ {[%clk 0:01:40.5]} 40.
Kxg1 {[%clk 0:00:20.8]} 40... Rxf1+ {[%clk 0:01:41.4]} 41. Kxf1 {[%clk
0:00:22.7]} 41... Ra8 {[%clk 0:01:43.1]} 42. Nf3 {[%clk 0:00:22.1]} 42... Rxa3
{[%clk 0:01:44.2]} 43. Kf2 {[%clk 0:00:24]} 43... Kf8 {[%clk 0:01:40.7]} 44. Kg3
{[%clk 0:00:25.9]} 44... Ke7 {[%clk 0:01:41.7]} 45. Kf4 {[%clk 0:00:27.8]} 45...
Kd7 {[%clk 0:01:42.6]} 46. g4 {[%clk 0:00:29.7]} 46... Kc6 {[%clk 0:01:41.5]}
47. Ke4 {[%clk 0:00:31.6]} 47... Rxf3 {[%clk 0:01:38.9]} 48. Kxf3 {[%clk
0:00:32.4]} 48... Kd5 {[%clk 0:01:40.5]} 49. Ke3 {[%clk 0:00:34.3]} 49... h5
{[%clk 0:01:40.9]} 50. gxh5 {[%clk 0:00:35.5]} 50... gxh5 {[%clk 0:01:41.8]} 51.
Kf4 {[%clk 0:00:37.4]} 51... Kxd4 {[%clk 0:01:42.7]} 52. Kg5 {[%clk 0:00:39]}
52... Kxe5 {[%clk 0:01:43.8]} 0-1

[Event "*** Titled Tuesday Blitz"]
[Site "Chess.com"]
[Date "2019.06.04"]
[Round "1"]
[White "ftorodent"]
[Black "Shivagami"]
[Result "1-0"]
[WhiteElo "2532"]
[BlackElo "2080"]
[TimeControl "180+2"]
[EndTime "13:08:00 PDT"]
[Termination "ftorodent won by resignation"]

1. d4 {[%clk 0:03:01.9]} 1... d5 {[%clk 0:02:51.6]} 2. c4 {[%clk 0:03:00.4]}
2... c6 {[%clk 0:02:51.5]} 3. cxd5 {[%clk 0:02:59.9]} 3... cxd5 {[%clk
0:02:51.1]} 4. Bf4 {[%clk 0:02:55]} 4... Nc6 {[%clk 0:02:47.8]} 5. e3 {[%clk
0:02:55.7]} 5... Nf6 {[%clk 0:02:48]} 6. Nc3 {[%clk 0:02:56.5]} 6... Bf5 {[%clk
0:02:48.7]} 7. Qb3 {[%clk 0:02:54.2]} 7... Na5 {[%clk 0:02:26.8]} 8. Qa4+ {[%clk
0:02:54.8]} 8... Bd7 {[%clk 0:02:27]} 9. Qc2 {[%clk 0:02:54.5]} 9... e6 {[%clk
0:02:14.3]} 10. Bd3 {[%clk 0:02:54.6]} 10... Rc8 {[%clk 0:02:11.4]} 11. Nf3
{[%clk 0:02:54.5]} 11... Bb4 {[%clk 0:02:04.4]} 12. O-O {[%clk 0:02:55]} 12...
Nc4 {[%clk 0:02:02.5]} 13. Rfc1 {[%clk 0:02:53.4]} 13... O-O {[%clk 0:01:58.3]}
14. Qe2 {[%clk 0:02:54]} 14... Qb6 {[%clk 0:01:49]} 15. Ne5 {[%clk 0:02:51.2]}
15... Nxb2 {[%clk 0:01:17.6]} 16. Nxd5 {[%clk 0:02:43]} 16... exd5 {[%clk
0:01:08.2]} 17. Qxb2 {[%clk 0:02:42.6]} 17... Be6 {[%clk 0:01:00.9]} 18. a3
{[%clk 0:02:32.5]} 18... Ba5 {[%clk 0:00:58.1]} 19. Qxb6 {[%clk 0:02:28.4]}
19... Bxb6 {[%clk 0:00:58.6]} 20. Kf1 {[%clk 0:02:28.9]} 20... Rxc1+ {[%clk
0:00:57.6]} 21. Rxc1 {[%clk 0:02:28.7]} 21... Rc8 {[%clk 0:00:58.9]} 22. Rxc8+
{[%clk 0:02:28.9]} 22... Bxc8 {[%clk 0:01:00.8]} 23. h3 {[%clk 0:02:29.4]} 23...
h6 {[%clk 0:00:58.5]} 24. Ke2 {[%clk 0:02:29.6]} 24... Kf8 {[%clk 0:00:59.4]}
25. f3 {[%clk 0:02:23]} 25... Ke7 {[%clk 0:00:59.8]} 26. g4 {[%clk 0:02:23.9]}
26... Ne8 {[%clk 0:00:59.5]} 27. Bc2 {[%clk 0:02:09.8]} 27... Nd6 {[%clk
0:00:57.2]} 28. Bb3 {[%clk 0:02:10.8]} 28... Be6 {[%clk 0:00:53.7]} 29. Kd3
{[%clk 0:02:08.9]} 29... f6 {[%clk 0:00:53.8]} 30. Ng6+ {[%clk 0:02:08.9]} 30...
Kf7 {[%clk 0:00:54.4]} 31. Nh8+ {[%clk 0:02:03.3]} 31... Kg8 {[%clk 0:00:54.8]}
32. Bxd6 {[%clk 0:02:03.3]} 32... Kxh8 {[%clk 0:00:53.6]} 33. Bc5 {[%clk
0:02:01.8]} 33... Kg8 {[%clk 0:00:45.8]} 34. Bxb6 {[%clk 0:02:02.2]} 34... axb6
{[%clk 0:00:47.6]} 35. Kc3 {[%clk 0:02:03.6]} 35... Kf7 {[%clk 0:00:42.6]} 36.
Kb4 {[%clk 0:02:04.2]} 36... Kg6 {[%clk 0:00:43.5]} 37. Kb5 {[%clk 0:01:35.5]}
37... Kg5 {[%clk 0:00:42.2]} 38. Kxb6 {[%clk 0:01:36.4]} 38... Kh4 {[%clk
0:00:41.2]} 39. Kxb7 {[%clk 0:01:37.1]} 39... Kxh3 {[%clk 0:00:33.4]} 40. a4
{[%clk 0:01:37.7]} 40... f5 {[%clk 0:00:20.3]} 41. a5 {[%clk 0:01:29.2]} 1-0

[Event "*** Titled Tuesday Blitz"]
[Site "Chess.com"]
[Date "2019.06.04"]
[Round "1"]
[White "ruvat"]
[Black "KNVB"]
[Result "0-1"]
[WhiteElo "2353"]
[BlackElo "2693"]
[TimeControl "180+2"]
[EndTime "13:08:02 PDT"]
[Termination "KNVB won by resignation"]

1. d4 {[%clk 0:02:59.2]} 1... Nf6 {[%clk 0:02:59.6]} 2. c4 {[%clk 0:03:00]} 2...
e6 {[%clk 0:03:00.2]} 3. g3 {[%clk 0:03:00.6]} 3... c5 {[%clk 0:02:46.6]} 4. d5
{[%clk 0:03:00.7]} 4... exd5 {[%clk 0:02:48.5]} 5. cxd5 {[%clk 0:03:02]} 5... d6
{[%clk 0:02:41.3]} 6. Nc3 {[%clk 0:03:02.7]} 6... g6 {[%clk 0:02:41.4]} 7. Bg2
{[%clk 0:03:03.8]} 7... Bg7 {[%clk 0:02:41.3]} 8. Nf3 {[%clk 0:03:05.2]} 8...
O-O {[%clk 0:02:42.9]} 9. O-O {[%clk 0:03:06.5]} 9... Nbd7 {[%clk 0:02:44.5]}
10. a4 {[%clk 0:03:07.5]} 10... a6 {[%clk 0:02:42.9]} 11. Bf4 {[%clk 0:03:06.7]}
11... Qe7 {[%clk 0:02:43.3]} 12. h3 {[%clk 0:03:06.1]} 12... Nh5 {[%clk
0:02:39]} 13. Bg5 {[%clk 0:03:05.9]} 13... f6 {[%clk 0:02:40.1]} 14. Bd2 {[%clk
0:03:06.6]} 14... f5 {[%clk 0:02:41.5]} 15. Ng5 {[%clk 0:02:55.6]} 15... f4
{[%clk 0:02:22.7]} 16. Nce4 {[%clk 0:02:56.2]} 16... Ne5 {[%clk 0:01:35.4]} 17.
g4 {[%clk 0:02:45.1]} 17... Nf6 {[%clk 0:01:34.5]} 18. Nxf6+ {[%clk 0:02:38.1]}
18... Qxf6 {[%clk 0:01:21.4]} 19. Ne6 {[%clk 0:02:39]} 19... Bxe6 {[%clk
0:01:05.9]} 20. dxe6 {[%clk 0:02:40.9]} 20... Rab8 {[%clk 0:00:30.9]} 21. Bc3
{[%clk 0:02:37.4]} 21... Qe7 {[%clk 0:00:27.3]} 22. Bd5 {[%clk 0:02:22.8]} 22...
b5 {[%clk 0:00:16.5]} 23. axb5 {[%clk 0:02:23.3]} 23... axb5 {[%clk 0:00:18.4]}
24. Qd2 {[%clk 0:01:57.8]} 24... b4 {[%clk 0:00:17.3]} 25. Bxe5 {[%clk
0:01:58.7]} 25... Bxe5 {[%clk 0:00:19.2]} 26. Ra6 {[%clk 0:01:50.6]} 26... Kh8
{[%clk 0:00:18.3]} 27. Rfa1 {[%clk 0:01:49.5]} 27... Qh4 {[%clk 0:00:14.7]} 28.
Kg2 {[%clk 0:01:32.7]} 28... Rbe8 {[%clk 0:00:15.7]} 29. Ra7 {[%clk 0:01:15.3]}
29... Re7 {[%clk 0:00:13]} 30. Ra8 {[%clk 0:01:13.5]} 30... Rxa8 {[%clk
0:00:12.3]} 31. Rxa8+ {[%clk 0:01:13.3]} 31... Kg7 {[%clk 0:00:14.2]} 32. b3
{[%clk 0:01:11.8]} 32... h5 {[%clk 0:00:14.4]} 33. Bf3 {[%clk 0:00:58.1]} 33...
Rxe6 {[%clk 0:00:14.4]} 34. Ra7+ {[%clk 0:00:57.7]} 34... Re7 {[%clk 0:00:15.6]}
35. Rxe7+ {[%clk 0:00:56.9]} 35... Qxe7 {[%clk 0:00:17.5]} 36. gxh5 {[%clk
0:00:56.9]} 36... gxh5 {[%clk 0:00:15.3]} 37. Bxh5 {[%clk 0:00:57.9]} 37... c4
{[%clk 0:00:16.5]} 38. bxc4 {[%clk 0:00:57.8]} 38... b3 {[%clk 0:00:17.8]} 39.
Bg4 {[%clk 0:00:52.9]} 39... b2 {[%clk 0:00:14.8]} 40. Qc2 {[%clk 0:00:53.9]}
40... Qb7+ {[%clk 0:00:15.4]} 0-1

[Event "*** Titled Tuesday Blitz"]
[Site "Chess.com"]
[Date "2019.06.04"]
[Round "1"]
[White "Krupko_Alexey"]
[Black "Niclox"]
[Result "0-1"]
[WhiteElo "2303"]
[BlackElo "2652"]
[TimeControl "180+2"]
[EndTime "13:08:03 PDT"]
[Termination "Niclox won by resignation"]

1. e4 {[%clk 0:03:01.9]} 1... c5 {[%clk 0:02:58.9]} 2. Nf3 {[%clk 0:03:02.5]}
2... d6 {[%clk 0:02:59.8]} 3. d4 {[%clk 0:03:03.2]} 3... cxd4 {[%clk 0:03:01.7]}
4. Nxd4 {[%clk 0:03:05]} 4... Nf6 {[%clk 0:03:02.4]} 5. Nc3 {[%clk 0:03:06.2]}
5... g6 {[%clk 0:03:03.5]} 6. Be3 {[%clk 0:03:06.9]} 6... Bg7 {[%clk 0:03:04.5]}
7. f3 {[%clk 0:03:08.4]} 7... O-O {[%clk 0:03:05.2]} 8. Qd2 {[%clk 0:03:10]}
8... Nc6 {[%clk 0:03:06.1]} 9. O-O-O {[%clk 0:03:11.5]} 9... Nxd4 {[%clk
0:03:05.8]} 10. Bxd4 {[%clk 0:03:11.7]} 10... Be6 {[%clk 0:03:07.1]} 11. Kb1
{[%clk 0:03:12.4]} 11... Qc7 {[%clk 0:03:07]} 12. g4 {[%clk 0:03:10.2]} 12...
Rfc8 {[%clk 0:03:07.2]} 13. h4 {[%clk 0:03:09.7]} 13... Qa5 {[%clk 0:03:06.9]}
14. a3 {[%clk 0:03:09.1]} 14... Rab8 {[%clk 0:03:03.8]} 15. h5 {[%clk
0:03:09.3]} 15... a6 {[%clk 0:02:40.8]} 16. hxg6 {[%clk 0:03:06.2]} 16... fxg6
{[%clk 0:02:42.6]} 17. Qe3 {[%clk 0:02:53.6]} 17... Bf7 {[%clk 0:02:14.6]} 18.
e5 {[%clk 0:02:50.7]} 18... dxe5 {[%clk 0:02:10]} 19. Bb6 {[%clk 0:02:41.2]}
19... Rxc3 {[%clk 0:02:06.6]} 20. bxc3 {[%clk 0:02:41.2]} 20... Qxa3 {[%clk
0:02:05.1]} 21. c4 {[%clk 0:02:38]} 21... Qxe3 {[%clk 0:01:41.2]} 22. Bxe3
{[%clk 0:02:38]} 22... e4 {[%clk 0:01:43.1]} 23. g5 {[%clk 0:02:33.2]} 23... Nh5
{[%clk 0:01:43.1]} 24. fxe4 {[%clk 0:02:25.3]} 24... Rc8 {[%clk 0:01:37.4]} 25.
c5 {[%clk 0:02:20.9]} 25... Ng3 {[%clk 0:01:35.4]} 26. Rh4 {[%clk 0:02:21.3]}
26... Nxf1 {[%clk 0:01:23.8]} 27. Rxf1 {[%clk 0:02:21.7]} 27... a5 {[%clk
0:01:06.6]} 28. Rfh1 {[%clk 0:02:11.8]} 28... a4 {[%clk 0:01:06.9]} 29. Rxh7
{[%clk 0:02:12.5]} 29... a3 {[%clk 0:01:06.5]} 30. Rxg7+ {[%clk 0:02:13.4]}
30... Kxg7 {[%clk 0:01:07.9]} 31. Bd4+ {[%clk 0:02:14.6]} 31... Kf8 {[%clk
0:01:08.4]} 32. Rh8+ {[%clk 0:01:45.5]} 32... Bg8 {[%clk 0:01:08.7]} 33. c4
{[%clk 0:01:46.7]} 33... Rd8 {[%clk 0:00:59.9]} 34. Bc3 {[%clk 0:01:32.8]} 34...
Rd3 {[%clk 0:00:57.8]} 35. Kc2 {[%clk 0:01:31.8]} 35... Rg3 {[%clk 0:00:55.1]}
36. Bd2 {[%clk 0:01:09.5]} 36... Rg2 {[%clk 0:00:54.8]} 37. Kc3 {[%clk
0:01:07.8]} 37... a2 {[%clk 0:00:47]} 38. Rh1 {[%clk 0:01:08.3]} 38... Bxc4
{[%clk 0:00:46.4]} 39. Kxc4 {[%clk 0:01:08.4]} 39... Rxd2 {[%clk 0:00:46.8]} 40.
Rf1+ {[%clk 0:00:54.6]} 40... Ke8 {[%clk 0:00:46.3]} 41. Kb5 {[%clk 0:00:53.4]}
41... Rb2+ {[%clk 0:00:45.2]} 42. Kc4 {[%clk 0:00:52.7]} 42... Rb1 {[%clk
0:00:42.7]} 0-1

[Event "*** Titled Tuesday Blitz"]
[Site "Chess.com"]
[Date "2019.06.04"]
[Round "1"]
[White "lachesisQ"]
[Black "Yashasd1995"]
[Result "1-0"]
[WhiteElo "3079"]
[BlackElo "2502"]
[TimeControl "180+2"]
[EndTime "13:08:04 PDT"]
[Termination "lachesisQ won by resignation"]

1. e4 {[%clk 0:03:01.9]} 1... d5 {[%clk 0:03:00.5]} 2. exd5 {[%clk 0:03:02.6]}
2... Nf6 {[%clk 0:03:02]} 3. Nf3 {[%clk 0:02:58.4]} 3... Nxd5 {[%clk 0:03:02.3]}
4. c4 {[%clk 0:02:59.4]} 4... Nb6 {[%clk 0:03:02.8]} 5. d4 {[%clk 0:03:00.8]}
5... g6 {[%clk 0:03:03.3]} 6. Nc3 {[%clk 0:02:56.4]} 6... Bg7 {[%clk 0:03:03.8]}
7. c5 {[%clk 0:02:57.9]} 7... N6d7 {[%clk 0:03:04.9]} 8. Bc4 {[%clk 0:02:51.7]}
8... O-O {[%clk 0:03:05.4]} 9. O-O {[%clk 0:02:52.6]} 9... b6 {[%clk 0:03:05.3]}
10. Re1 {[%clk 0:02:48.7]} 10... Nf6 {[%clk 0:02:45]} 11. Ne5 {[%clk 0:02:45.5]}
11... Bb7 {[%clk 0:02:22.4]} 12. Qb3 {[%clk 0:02:41.1]} 12... e6 {[%clk
0:01:59.6]} 13. Bg5 {[%clk 0:02:20.5]} 13... Nc6 {[%clk 0:01:15.9]} 14. Rad1
{[%clk 0:02:12.6]} 14... Na5 {[%clk 0:01:16.2]} 15. Qc2 {[%clk 0:02:04.9]} 15...
Nxc4 {[%clk 0:01:16.7]} 16. Nxc4 {[%clk 0:02:06.8]} 16... h6 {[%clk 0:01:17.3]}
17. Bh4 {[%clk 0:02:07]} 17... g5 {[%clk 0:01:08.7]} 18. Bg3 {[%clk 0:02:07.8]}
18... Nd5 {[%clk 0:01:10.4]} 19. Be5 {[%clk 0:02:03.4]} 19... Nf4 {[%clk
0:01:05.3]} 20. f3 {[%clk 0:01:38.8]} 20... Ng6 {[%clk 0:00:35.4]} 21. Bxg7
{[%clk 0:01:29.4]} 21... Kxg7 {[%clk 0:00:37.3]} 22. b4 {[%clk 0:01:29.8]} 22...
Qf6 {[%clk 0:00:34.7]} 23. b5 {[%clk 0:01:27.4]} 23... Bd5 {[%clk 0:00:34.3]}
24. Ne5 {[%clk 0:01:23.4]} 24... Rfe8 {[%clk 0:00:32.4]} 25. Ng4 {[%clk
0:01:03.2]} 25... Qd8 {[%clk 0:00:26.6]} 26. Ne3 {[%clk 0:01:03.6]} 26... c6
{[%clk 0:00:25.7]} 27. Ncxd5 {[%clk 0:01:02.9]} 27... cxd5 {[%clk 0:00:24.5]}
28. c6 {[%clk 0:01:04.1]} 28... Rc8 {[%clk 0:00:24.4]} 29. a4 {[%clk 0:01:04.6]}
29... Nf4 {[%clk 0:00:23.8]} 30. g3 {[%clk 0:01:03.7]} 30... Nh5 {[%clk
0:00:24.7]} 31. Ng4 {[%clk 0:01:03.9]} 31... Nf6 {[%clk 0:00:24.9]} 32. Ne5
{[%clk 0:01:03.9]} 32... Qd6 {[%clk 0:00:25.1]} 33. Kg2 {[%clk 0:01:04.6]} 33...
a6 {[%clk 0:00:24.8]} 34. h4 {[%clk 0:00:56]} 34... Rg8 {[%clk 0:00:25.4]} 35.
hxg5 {[%clk 0:00:56]} 35... hxg5 {[%clk 0:00:27.3]} 36. Rh1 {[%clk 0:00:57.5]}
36... Rh8 {[%clk 0:00:21.7]} 37. g4 {[%clk 0:00:55.9]} 37... a5 {[%clk
0:00:21.7]} 38. Qd2 {[%clk 0:00:55.7]} 38... Nh7 {[%clk 0:00:09]} 39. Rxh7+
{[%clk 0:00:54]} 39... Rxh7 {[%clk 0:00:09.9]} 40. Qxg5+ {[%clk 0:00:55.3]}
40... Kf8 {[%clk 0:00:11.2]} 41. Nd7+ {[%clk 0:00:56.7]} 1-0

[Event "*** Titled Tuesday Blitz"]
[Site "Chess.com"]
[Date "2019.06.04"]
[Round "1"]
[White "vovachesss"]
[Black "TristanCalistri"]
[Result "1-0"]
[WhiteElo "2603"]
[BlackElo "2237"]
[TimeControl "180+2"]
[EndTime "13:08:11 PDT"]
[Termination "vovachesss won by checkmate"]

1. e4 {[%clk 0:02:58.6]} 1... e5 {[%clk 0:03:00.2]} 2. Nf3 {[%clk 0:02:58.3]}
2... d6 {[%clk 0:03:01.2]} 3. d4 {[%clk 0:02:58.8]} 3... exd4 {[%clk 0:03:02.3]}
4. c3 {[%clk 0:03:00]} 4... Nf6 {[%clk 0:03:04]} 5. Bc4 {[%clk 0:02:56.5]} 5...
Be7 {[%clk 0:03:01.1]} 6. e5 {[%clk 0:02:52.9]} 6... dxe5 {[%clk 0:02:55.7]} 7.
Nxe5 {[%clk 0:02:54.4]} 7... O-O {[%clk 0:02:53.7]} 8. Qb3 {[%clk 0:02:52.8]}
8... Qe8 {[%clk 0:02:44.2]} 9. O-O {[%clk 0:02:52.6]} 9... Nc6 {[%clk
0:02:25.8]} 10. Nxc6 {[%clk 0:02:49.6]} 10... Qxc6 {[%clk 0:02:25.5]} 11. cxd4
{[%clk 0:02:46.8]} 11... Bf5 {[%clk 0:02:16.5]} 12. Nc3 {[%clk 0:02:46.1]} 12...
Rad8 {[%clk 0:02:12.5]} 13. Be3 {[%clk 0:02:43.4]} 13... Ng4 {[%clk 0:01:56.1]}
14. Nd5 {[%clk 0:02:32.4]} 14... Bd6 {[%clk 0:01:36.6]} 15. h3 {[%clk
0:02:32.8]} 15... Nxe3 {[%clk 0:01:20]} 16. fxe3 {[%clk 0:02:30]} 16... Be4
{[%clk 0:01:14.7]} 17. Nc3 {[%clk 0:02:08.8]} 17... Bg6 {[%clk 0:01:01.4]} 18.
e4 {[%clk 0:02:00.1]} 18... Qb6 {[%clk 0:00:54.2]} 19. Qxb6 {[%clk 0:01:55.5]}
19... axb6 {[%clk 0:00:55.3]} 20. e5 {[%clk 0:01:48.5]} 20... Be7 {[%clk
0:00:47.7]} 21. Nd5 {[%clk 0:01:48.5]} 21... Rd7 {[%clk 0:00:43.3]} 22. Rad1
{[%clk 0:01:04]} 22... Bd8 {[%clk 0:00:42.7]} 23. Nf4 {[%clk 0:01:03.3]} 23...
Re7 {[%clk 0:00:37.4]} 24. e6 {[%clk 0:01:00.6]} 24... c6 {[%clk 0:00:27.3]} 25.
Nxg6 {[%clk 0:00:59.4]} 25... fxg6 {[%clk 0:00:28.1]} 26. Rf7 {[%clk 0:00:50.6]}
26... Rfxf7 {[%clk 0:00:27.8]} 27. exf7+ {[%clk 0:00:51.7]} 27... Kf8 {[%clk
0:00:29.4]} 28. d5 {[%clk 0:00:49.6]} 28... Rd7 {[%clk 0:00:29.8]} 29. Kf2
{[%clk 0:00:40.2]} 29... Rxf7+ {[%clk 0:00:29.8]} 30. Ke2 {[%clk 0:00:39.9]}
30... Re7+ {[%clk 0:00:26.9]} 31. Kd3 {[%clk 0:00:38.6]} 31... Rd7 {[%clk
0:00:27.1]} 32. Ke4 {[%clk 0:00:37.3]} 32... cxd5+ {[%clk 0:00:19.4]} 33. Bxd5
{[%clk 0:00:37.8]} 33... Bf6 {[%clk 0:00:19.3]} 34. b3 {[%clk 0:00:36.7]} 34...
b5 {[%clk 0:00:18.4]} 35. Rc1 {[%clk 0:00:37.6]} 35... b4 {[%clk 0:00:18.7]} 36.
Rc5 {[%clk 0:00:38.4]} 36... Bc3 {[%clk 0:00:18.6]} 37. Rb5 {[%clk 0:00:36]}
37... Ke7 {[%clk 0:00:18.9]} 38. Bxb7 {[%clk 0:00:37.1]} 38... Kf6 {[%clk
0:00:19.6]} 39. Bd5 {[%clk 0:00:37.5]} 39... Re7+ {[%clk 0:00:19.8]} 40. Kf4
{[%clk 0:00:37.5]} 40... Re2 {[%clk 0:00:20.4]} 41. Rb7 {[%clk 0:00:35.9]} 41...
Rxa2 {[%clk 0:00:20]} 42. Rf7# {[%clk 0:00:36.3]} 1-0

[Event "*** Titled Tuesday Blitz"]
[Site "Chess.com"]
[Date "2019.06.04"]
[Round "1"]
[White "WPWPWP-2015"]
[Black "GM_dmitrij"]
[Result "0-1"]
[WhiteElo "2434"]
[BlackElo "2820"]
[TimeControl "180+2"]
[EndTime "13:08:16 PDT"]
[Termination "GM_dmitrij won by resignation"]

1. e4 {[%clk 0:03:01.9]} 1... e5 {[%clk 0:02:59.1]} 2. Nf3 {[%clk 0:02:59.1]}
2... Nc6 {[%clk 0:02:59.6]} 3. Bb5 {[%clk 0:02:58.8]} 3... a6 {[%clk 0:02:58.6]}
4. Ba4 {[%clk 0:02:59.8]} 4... Nf6 {[%clk 0:02:56.3]} 5. O-O {[%clk 0:03:00]}
5... Be7 {[%clk 0:02:56.9]} 6. Re1 {[%clk 0:03:00]} 6... b5 {[%clk 0:02:56.4]}
7. Bb3 {[%clk 0:03:01.3]} 7... d6 {[%clk 0:02:58.3]} 8. c3 {[%clk 0:03:01.2]}
8... O-O {[%clk 0:02:57.3]} 9. d4 {[%clk 0:03:02.1]} 9... Bg4 {[%clk 0:02:57.5]}
10. a4 {[%clk 0:03:02.5]} 10... exd4 {[%clk 0:02:30.2]} 11. cxd4 {[%clk
0:03:02.1]} 11... Bxf3 {[%clk 0:02:25.9]} 12. gxf3 {[%clk 0:03:02.5]} 12... Na5
{[%clk 0:02:27.6]} 13. Bc2 {[%clk 0:03:00.1]} 13... c5 {[%clk 0:02:29]} 14. d5
{[%clk 0:02:59.4]} 14... Nd7 {[%clk 0:02:16.9]} 15. f4 {[%clk 0:02:58.3]} 15...
c4 {[%clk 0:02:15.3]} 16. Nc3 {[%clk 0:02:40.7]} 16... b4 {[%clk 0:02:11]} 17.
Ne2 {[%clk 0:02:41.3]} 17... Nc5 {[%clk 0:02:12.2]} 18. Nd4 {[%clk 0:02:37.1]}
18... Bf6 {[%clk 0:02:04.5]} 19. e5 {[%clk 0:02:33.4]} 19... dxe5 {[%clk
0:02:06.2]} 20. fxe5 {[%clk 0:02:34.3]} 20... Bg5 {[%clk 0:01:49.5]} 21. Qh5
{[%clk 0:01:14.1]} 21... h6 {[%clk 0:01:49]} 22. Bxg5 {[%clk 0:01:14.1]} 22...
Qxg5+ {[%clk 0:01:48]} 23. Qxg5 {[%clk 0:01:15]} 23... hxg5 {[%clk 0:01:49.9]}
24. e6 {[%clk 0:00:57.3]} 24... b3 {[%clk 0:01:30.7]} 25. exf7+ {[%clk
0:00:43.2]} 25... Rxf7 {[%clk 0:01:28]} 26. Bf5 {[%clk 0:00:39.7]} 26... Raf8
{[%clk 0:01:23.7]} 27. Re5 {[%clk 0:00:32.4]} 27... c3 {[%clk 0:01:15.6]} 28.
Be6 {[%clk 0:00:32.3]} 28... Nxe6 {[%clk 0:01:07.9]} 29. Nxe6 {[%clk 0:00:32.6]}
29... cxb2 {[%clk 0:00:53.7]} 30. Rb1 {[%clk 0:00:33]} 30... Rc8 {[%clk
0:00:55.2]} 31. d6 {[%clk 0:00:12]} 31... Rc1+ {[%clk 0:00:49]} 32. Re1 {[%clk
0:00:12.7]} 32... Rxe1+ {[%clk 0:00:49.5]} 33. Rxe1 {[%clk 0:00:13.3]} 33... Nc4
{[%clk 0:00:32.6]} 34. Nc5 {[%clk 0:00:06.6]} 34... Nd2 {[%clk 0:00:27.4]} 35.
d7 {[%clk 0:00:04.6]} 35... Rxd7 {[%clk 0:00:28.5]} 36. Nxd7 {[%clk 0:00:05.1]}
36... Nf3+ {[%clk 0:00:29.9]} 37. Kf1 {[%clk 0:00:05.3]} 37... Nxe1 {[%clk
0:00:31.8]} 0-1